[Event "FIDE Grand Swiss 2023"]
[Site "Villa Marina, Douglas, Isle of Man"]
[Date "2023.10.29"]
[Round "5.26"]
[White "Ponomariov, Ruslan"]
[Black "Harikrishna, Pentala"]
[Result "1/2-1/2"]
[WhiteElo "2641"]
[BlackElo "2716"]
[EventDate "2023.10.25"]
[ECO "E05"]
[PlyCount "61"]
[BlackFideId "5007003"]
[TimeControl "40/100 + 20/50 + 15 + 30s/move"]
[WhiteFideId "14103320"]

1.d4 {[%clk 01:40:57] [%emt 00:00:02]} 1...Nf6 {[%clk 01:40:53] [%emt 00:00:08]} 
2.c4 {[%clk 01:41:15] [%emt 00:00:12]} 2...e6 {[%clk 01:41:17] [%emt 00:00:05]} 
3.Nf3 {[%clk 01:41:35] [%emt 00:00:10]} 3...d5 {[%clk 01:41:36] [%emt 00:00:12]} 
4.g3 {[%clk 01:41:49] [%emt 00:00:15]} 4...Be7 {[%clk 01:41:55] [%emt 00:00:11]} 
5.Bg2 {[%clk 01:42:04] [%emt 00:00:15]} 5...O-O {[%clk 01:42:17] [%emt
00:00:08]} 6.O-O {[%clk 01:42:08] [%emt 00:00:26]} 6...dxc4 {[%clk 01:42:41]
[%emt 00:00:06]} 7.Qc2 {[%clk 01:42:15] [%emt 00:00:22]} 7...a6 {[%clk 01:43:03]
[%emt 00:00:09]} 8.a4 {[%clk 01:42:25] [%emt 00:00:20]} 8...Bd7 {[%clk 01:43:26]
[%emt 00:00:07]} 9.Qxc4 {[%clk 01:42:40] [%emt 00:00:15]} 9...Bc6 {[%clk
01:43:50] [%emt 00:00:06]} 10.Bg5 {[%clk 01:42:43] [%emt 00:00:26]} 10...Nbd7 
{[%clk 01:43:42] [%emt 00:00:39]} 11.Nc3 {[%clk 01:42:30] [%emt 00:00:42]} 
11...h6 {[%clk 01:44:03] [%emt 00:00:09]} 12.Bxf6 {[%clk 01:42:32] [%emt
00:00:29]} 12...Nxf6 {[%clk 01:44:23] [%emt 00:00:09]} 13.a5 {[%clk 01:41:34]
[%emt 00:01:29]} 13...Qd6 {[%clk 01:33:22] [%emt 00:11:30]} 14.Rfd1 {[%clk
01:38:13] [%emt 00:03:51]} 14...Rfd8 {[%clk 01:29:34] [%emt 00:04:19]} 15.e3 
{[%clk 01:37:42] [%emt 00:01:00]} 15...Rab8 {[%clk 01:21:52] [%emt 00:08:12]} 
16.Qe2 {[%clk 01:35:21] [%emt 00:02:51]} 16...Bxf3 {[%clk 01:20:26] [%emt
00:01:57]} 17.Bxf3 {[%clk 01:34:51] [%emt 00:01:00]} 17...c6 {[%clk 01:18:26]
[%emt 00:02:30]} 18.h4 {[%clk 01:29:34] [%emt 00:05:46]} 18...Qc7 {[%clk
01:14:37] [%emt 00:04:19]} 19.Qc4 {[%clk 01:21:20] [%emt 00:08:44]} 19...h5 
{[%clk 01:07:22] [%emt 00:07:46]} 20.Kg2 {[%clk 01:10:18] [%emt 00:11:31]} 
20...g6 {[%clk 01:04:33] [%emt 00:03:19]} 21.Ne2 {[%clk 01:09:35] [%emt
00:01:13]} 21...Kg7 {[%clk 01:01:16] [%emt 00:03:47]} 22.Nf4 {[%clk 01:07:46]
[%emt 00:02:20]} 22...e5 {[%clk 01:01:14] [%emt 00:00:32]} 23.dxe5 {[%clk
01:07:13] [%emt 00:01:03]} 23...Qxe5 {[%clk 01:01:38] [%emt 00:00:06]} 24.Nd3 
{[%clk 01:06:47] [%emt 00:00:55]} 24...Qc7 {[%clk 01:01:35] [%emt 00:00:33]} 
25.Qc3 {[%clk 00:55:12] [%emt 00:12:06]} 25...Bd6 {[%clk 00:53:55] [%emt
00:08:09]} 26.Rac1 {[%clk 00:40:59] [%emt 00:14:43]} 26...Re8 {[%clk 00:52:05]
[%emt 00:02:20]} 27.b4 {[%clk 00:39:18] [%emt 00:02:11]} 27...Rbd8 {[%clk
00:49:01] [%emt 00:03:34]} 28.Qb2 {[%clk 00:39:02] [%emt 00:00:47]} 28...Qe7 
{[%clk 00:47:10] [%emt 00:02:20]} 29.Nc5 {[%clk 00:33:37] [%emt 00:05:56]} 
29...Bxc5 {[%clk 00:36:20] [%emt 00:11:20]} 30.bxc5 {[%clk 00:33:33] [%emt
00:00:34]} 30...Rxd1 {[%clk 00:35:07] [%emt 00:01:43]} 31.Rxd1 {[%clk 00:33:23]
[%emt 00:00:39]} 1/2-1/2

[Event "FIDE Grand Swiss 2023"]
[Site "Villa Marina, Douglas, Isle of Man"]
[Date "2023.10.29"]
[Round "5.27"]
[White "Maghsoodloo, Parham"]
[Black "Sadhwani, Raunak"]
[Result "1-0"]
[WhiteElo "2707"]
[BlackElo "2641"]
[EventDate "2023.10.25"]
[ECO "A29"]
[PlyCount "83"]
[BlackFideId "35093487"]
[TimeControl "40/100 + 20/50 + 15 + 30s/move"]
[WhiteFideId "12539929"]

1.c4 {[%clk 01:40:58] [%emt 00:00:01]} 1...Nf6 {[%clk 01:40:55] [%emt 00:00:04]} 
2.Nc3 {[%clk 01:41:23] [%emt 00:00:06]} 2...e5 {[%clk 01:41:19] [%emt 00:00:06]} 
3.Nf3 {[%clk 01:41:47] [%emt 00:00:06]} 3...Nc6 {[%clk 01:41:45] [%emt
00:00:04]} 4.g3 {[%clk 01:42:13] [%emt 00:00:04]} 4...Bb4 {[%clk 01:42:09] [%emt
00:00:06]} 5.Nd5 {[%clk 01:42:39] [%emt 00:00:04]} 5...e4 {[%clk 01:41:56] [%emt
00:00:43]} 6.Nh4 {[%clk 01:43:03] [%emt 00:00:06]} 6...O-O {[%clk 01:41:55]
[%emt 00:00:30]} 7.a3 {[%clk 01:43:18] [%emt 00:00:17]} 7...Ba5 {[%clk 01:33:20]
[%emt 00:09:05]} 8.b4 {[%clk 01:43:15] [%emt 00:00:33]} 8...Bb6 {[%clk 01:33:43]
[%emt 00:00:07]} 9.Bb2 {[%clk 01:43:41] [%emt 00:00:04]} 9...Bd4 {[%clk
01:27:27] [%emt 00:06:45]} 10.Bxd4 {[%clk 01:43:54] [%emt 00:00:17]} 10...Nxd4 
{[%clk 01:27:52] [%emt 00:00:04]} 11.e3 {[%clk 01:44:03] [%emt 00:00:22]} 
11...Nc6 {[%clk 01:21:29] [%emt 00:06:53]} 12.Bg2 {[%clk 01:44:21] [%emt
00:00:12]} 12...Ne5 {[%clk 01:12:19] [%emt 00:09:40]} 13.Nxf6+ {[%clk 01:44:09]
[%emt 00:00:43]} 13...Qxf6 {[%clk 01:12:43] [%emt 00:00:05]} 14.Bxe4 {[%clk
01:42:45] [%emt 00:01:54]} 14...Nxc4 {[%clk 01:13:08] [%emt 00:00:06]} 15.O-O 
{[%clk 01:43:08] [%emt 00:00:05]} 15...Nd6 {[%clk 01:10:30] [%emt 00:03:09]} 
16.Bg2 {[%clk 01:37:55] [%emt 00:05:42]} 16...Nf5 {[%clk 01:10:54] [%emt
00:00:07]} 17.Nxf5 {[%clk 01:36:30] [%emt 00:01:55]} 17...Qxf5 {[%clk 01:11:18]
[%emt 00:00:05]} 18.d4 {[%clk 01:20:40] [%emt 00:16:21]} 18...d5 {[%clk
01:11:25] [%emt 00:00:23]} 19.Rc1 {[%clk 01:19:02] [%emt 00:02:08]} 19...c6 
{[%clk 01:11:23] [%emt 00:00:33]} 20.b5 {[%clk 01:19:23] [%emt 00:00:09]} 
20...Bd7 {[%clk 01:11:13] [%emt 00:00:39]} 21.Qb3 {[%clk 01:16:49] [%emt
00:03:04]} 21...h5 {[%clk 01:08:00] [%emt 00:03:43]} 22.h4 {[%clk 01:11:19]
[%emt 00:06:00]} 22...a6 {[%clk 01:05:02] [%emt 00:03:28]} 23.bxc6 {[%clk
01:10:15] [%emt 00:01:35]} 23...bxc6 {[%clk 01:04:54] [%emt 00:00:38]} 24.Rc5 
{[%clk 01:07:08] [%emt 00:03:37]} 24...Rfb8 {[%clk 01:04:46] [%emt 00:00:37]} 
25.Qd1 {[%clk 01:05:57] [%emt 00:01:41]} 25...Qh7 {[%clk 00:47:08] [%emt
00:18:08]} 26.e4 {[%clk 00:46:28] [%emt 00:19:59]} 26...Bg4 {[%clk 00:40:32]
[%emt 00:07:07]} 27.f3 {[%clk 00:45:11] [%emt 00:01:47]} 27...Bd7 {[%clk
00:37:24] [%emt 00:03:38]} 28.exd5 {[%clk 00:45:09] [%emt 00:00:32]} 28...Qg6 
{[%clk 00:37:26] [%emt 00:00:28]} 29.dxc6 {[%clk 00:41:52] [%emt 00:03:47]} 
29...Bxc6 {[%clk 00:36:57] [%emt 00:00:59]} 30.Kh2 {[%clk 00:42:08] [%emt
00:00:13]} 30...Rb5 {[%clk 00:35:35] [%emt 00:01:52]} 31.Qc1 {[%clk 00:37:52]
[%emt 00:04:47]} 31...Bb7 {[%clk 00:35:40] [%emt 00:00:25]} 32.Rd1 {[%clk
00:33:28] [%emt 00:04:54]} 32...Qd6 {[%clk 00:35:10] [%emt 00:01:00]} 33.a4 
{[%clk 00:31:59] [%emt 00:01:59]} 33...Rxc5 {[%clk 00:31:00] [%emt 00:04:40]} 
34.dxc5 {[%clk 00:29:25] [%emt 00:03:03]} 34...Qc7 {[%clk 00:30:35] [%emt
00:00:56]} 35.Qg5 {[%clk 00:28:16] [%emt 00:01:39]} 35...g6 {[%clk 00:30:04]
[%emt 00:01:01]} 36.Rd6 {[%clk 00:23:59] [%emt 00:04:47]} 36...Re8 {[%clk
00:19:14] [%emt 00:11:21]} 37.Bf1 {[%clk 00:18:53] [%emt 00:05:36]} 37...Bxf3 
{[%clk 00:16:38] [%emt 00:03:06]} 38.Bc4 {[%clk 00:17:45] [%emt 00:01:38]} 
38...Be4 {[%clk 00:16:41] [%emt 00:00:26]} 39.Qf4 {[%clk 00:13:07] [%emt
00:05:08]} 39...Re7 {[%clk 00:14:35] [%emt 00:02:38]} 40.Bxf7+ {[%clk 00:12:41]
[%emt 00:00:56]} 40...Kh7 {[%clk 00:14:54] [%emt 00:00:10]} 41.Bc4 {[%clk
00:04:58] [%emt 00:08:13]} 41...Qxc5 {[%clk 00:12:18] [%emt 00:03:07]} 42.Qf8 
{[%clk 00:04:05] [%emt 00:01:22]} 1-0

[Event "FIDE Grand Swiss 2023"]
[Site "Villa Marina, Douglas, Isle of Man"]
[Date "2023.10.29"]
[Round "5.28"]
[White "Martirosyan, Haik M."]
[Black "Yilmaz, Mustafa"]
[Result "0-1"]
[WhiteElo "2696"]
[BlackElo "2640"]
[EventDate "2023.10.25"]
[ECO "D38"]
[PlyCount "86"]
[BlackFideId "6302718"]
[TimeControl "40/100 + 20/50 + 15 + 30s/move"]
[WhiteFideId "13306553"]

1.d4 {[%clk 01:40:56] [%emt 00:00:03]} 1...Nf6 {[%clk 01:40:55] [%emt 00:00:05]} 
2.c4 {[%clk 01:41:19] [%emt 00:00:07]} 2...e6 {[%clk 01:41:22] [%emt 00:00:03]} 
3.Nf3 {[%clk 01:41:39] [%emt 00:00:10]} 3...d5 {[%clk 01:41:47] [%emt 00:00:05]} 
4.Nc3 {[%clk 01:42:01] [%emt 00:00:08]} 4...Bb4 {[%clk 01:42:12] [%emt
00:00:06]} 5.Qa4+ {[%clk 01:41:56] [%emt 00:00:35]} 5...Nc6 {[%clk 01:42:35]
[%emt 00:00:07]} 6.e3 {[%clk 01:42:11] [%emt 00:00:15]} 6...O-O {[%clk 01:42:56]
[%emt 00:00:09]} 7.Qc2 {[%clk 01:42:38] [%emt 00:00:03]} 7...Re8 {[%clk
01:43:14] [%emt 00:00:12]} 8.Bd2 {[%clk 01:41:07] [%emt 00:02:01]} 8...Bf8 
{[%clk 01:43:25] [%emt 00:00:19]} 9.Be2 {[%clk 01:39:40] [%emt 00:01:57]} 
9...Nb4 {[%clk 01:41:28] [%emt 00:02:27]} 10.Qb1 {[%clk 01:39:49] [%emt
00:00:21]} 10...dxc4 {[%clk 01:41:52] [%emt 00:00:05]} 11.Bxc4 {[%clk 01:40:10]
[%emt 00:00:09]} 11...b6 {[%clk 01:42:18] [%emt 00:00:05]} 12.a3 {[%clk
01:40:29] [%emt 00:00:11]} 12...Ba6 {[%clk 01:42:35] [%emt 00:00:13]} 13.Be2 
{[%clk 01:40:39] [%emt 00:00:19]} 13...Bxe2 {[%clk 01:42:22] [%emt 00:00:43]} 
14.Nxe2 {[%clk 01:41:06] [%emt 00:00:04]} 14...Na6 {[%clk 01:42:39] [%emt
00:00:13]} 15.e4 {[%clk 01:41:03] [%emt 00:00:33]} 15...c5 {[%clk 01:42:42]
[%emt 00:00:26]} 16.e5 {[%clk 01:41:19] [%emt 00:00:14]} 16...Nd5 {[%clk
01:42:32] [%emt 00:00:40]} 17.Qd3 {[%clk 01:41:36] [%emt 00:00:13]} 17...Nb8 
{[%clk 01:43:00] [%emt 00:00:02]} 18.Ng5 {[%clk 01:40:14] [%emt 00:01:52]} 
18...f5 {[%clk 01:41:39] [%emt 00:01:51]} 19.g4 {[%clk 01:37:59] [%emt
00:02:45]} 19...h6 {[%clk 01:37:35] [%emt 00:04:34]} 20.h4 {[%clk 01:31:30]
[%emt 00:07:00]} 20...Qd7 {[%clk 01:37:14] [%emt 00:00:51]} 21.gxf5 {[%clk
01:25:20] [%emt 00:06:40]} 21...exf5 {[%clk 01:37:36] [%emt 00:00:07]} 22.f4 
{[%clk 00:43:27] [%emt 00:42:23]} 22...hxg5 {[%clk 01:26:27] [%emt 00:11:39]} 
23.hxg5 {[%clk 00:43:45] [%emt 00:00:13]} 23...Kf7 {[%clk 01:01:56] [%emt
00:25:01]} 24.dxc5 {[%clk 00:41:32] [%emt 00:02:43]} 24...bxc5 {[%clk 00:55:51]
[%emt 00:06:35]} 25.O-O-O {[%clk 00:36:41] [%emt 00:05:21]} 25...Nc6 {[%clk
00:53:24] [%emt 00:02:57]} 26.g6+ {[%clk 00:33:39] [%emt 00:03:32]} 26...Ke6 
{[%clk 00:48:10] [%emt 00:05:44]} 27.Rh5 {[%clk 00:32:31] [%emt 00:01:38]} 
27...Nce7 {[%clk 00:40:21] [%emt 00:08:18]} 28.Ng3 {[%clk 00:30:07] [%emt
00:02:55]} 28...Nb6 {[%clk 00:37:05] [%emt 00:03:46]} 29.Qc2 {[%clk 00:21:03]
[%emt 00:09:34]} 29...Qa4 {[%clk 00:28:26] [%emt 00:09:09]} 30.b3 {[%clk
00:20:48] [%emt 00:00:45]} 30...Qxa3+ {[%clk 00:15:43] [%emt 00:13:13]} 31.Kb1 
{[%clk 00:21:18]} 31...Nbd5 {[%clk 00:15:53] [%emt 00:00:20]} 32.Bc1 {[%clk
00:15:00] [%emt 00:06:48]} 32...Qb4 {[%clk 00:16:20] [%emt 00:00:02]} 33.Bd2 
{[%clk 00:06:12] [%emt 00:09:18]} 33...Qa3 {[%clk 00:16:42] [%emt 00:00:09]} 
34.Bc1 {[%clk 00:06:08] [%emt 00:00:35]} 34...Qb4 {[%clk 00:17:05] [%emt
00:00:04]} 35.Nxf5 {[%clk 00:04:43] [%emt 00:01:56]} 35...Reb8 {[%clk 00:08:12]
[%emt 00:09:24]} 36.Kb2 {[%clk 00:01:59] [%emt 00:03:14]} 36...c4 {[%clk
00:04:06] [%emt 00:04:35]} 37.Nd4+ {[%clk 00:01:03] [%emt 00:01:27]} 37...Kd7 
{[%clk 00:04:35] [%emt 00:00:01]} 38.f5 {[%clk 00:00:40] [%emt 00:00:53]} 
38...cxb3 {[%clk 00:03:15] [%emt 00:01:50]} 39.Qd3 {[%clk 00:00:39] [%emt
00:00:32]} 39...Nc6 {[%clk 00:00:50] [%emt 00:02:53]} 40.e6+ {[%emt 00:00:39]} 
40...Ke8 {[%clk 00:00:50] [%emt 00:00:28]} 41.e7 {[%clk 00:00:32] [%emt
00:00:30]} 41...Bxe7 {[%clk 00:00:37] [%emt 00:00:43]} 42.Rh8+ {[%clk 00:26:21]
[%emt 00:24:41]} 42...Kd7 {[%clk 00:48:42] [%emt 00:02:25]} 43.Kb1 {[%clk
00:25:23] [%emt 00:01:29]} 43...Nxd4 {[%clk 00:39:36] [%emt 00:09:35]} 0-1

[Event "FIDE Grand Swiss 2023"]
[Site "Villa Marina, Douglas, Isle of Man"]
[Date "2023.10.29"]
[Round "5.29"]
[White "Xiong, Jeffery"]
[Black "Murzin, Volodar"]
[Result "1/2-1/2"]
[WhiteElo "2693"]
[BlackElo "2633"]
[EventDate "2023.10.25"]
[ECO "D43"]
[PlyCount "180"]
[BlackFideId "44155573"]
[TimeControl "40/100 + 20/50 + 15 + 30s/move"]
[WhiteFideId "2047640"]

1.d4 {[%clk 01:40:56] [%emt 00:00:03]} 1...d5 {[%clk 01:40:54] [%emt 00:00:08]} 
2.c4 {[%clk 01:41:20] [%emt 00:00:05]} 2...c6 {[%clk 01:41:18] [%emt 00:00:07]} 
3.Nf3 {[%clk 01:41:42] [%emt 00:00:07]} 3...Nf6 {[%clk 01:41:40] [%emt
00:00:08]} 4.Nc3 {[%clk 01:42:05] [%emt 00:00:07]} 4...e6 {[%clk 01:41:59] [%emt
00:00:11]} 5.Bg5 {[%clk 01:42:28] [%emt 00:00:07]} 5...Nbd7 {[%clk 01:42:23]
[%emt 00:00:06]} 6.cxd5 {[%clk 01:42:36] [%emt 00:00:22]} 6...exd5 {[%clk
01:42:37] [%emt 00:00:17]} 7.e3 {[%clk 01:42:59] [%emt 00:00:07]} 7...h6 {[%clk
01:41:31] [%emt 00:01:36]} 8.Bh4 {[%clk 01:43:24] [%emt 00:00:04]} 8...Be7 
{[%clk 01:41:24] [%emt 00:00:37]} 9.Qc2 {[%clk 01:43:42] [%emt 00:00:13]} 
9...O-O {[%clk 01:36:44] [%emt 00:05:10]} 10.Bd3 {[%clk 01:44:07] [%emt
00:00:04]} 10...Re8 {[%clk 01:36:27] [%emt 00:00:47]} 11.O-O {[%clk 01:44:32]
[%emt 00:00:05]} 11...Ne4 {[%clk 01:36:32] [%emt 00:00:26]} 12.Bxe4 {[%clk
01:44:55] [%emt 00:00:07]} 12...Bxh4 {[%clk 01:36:57] [%emt 00:00:06]} 13.Bh7+ 
{[%clk 01:45:18] [%emt 00:00:06]} 13...Kh8 {[%clk 01:37:23] [%emt 00:00:04]} 
14.Bd3 {[%clk 01:45:28] [%emt 00:00:19]} 14...Bf6 {[%clk 01:30:42] [%emt
00:07:11]} 15.b4 {[%clk 01:39:16] [%emt 00:06:41]} 15...Nb6 {[%clk 01:27:17]
[%emt 00:03:57]} 16.Rab1 {[%clk 01:27:29] [%emt 00:12:16]} 16...Bg4 {[%clk
01:21:41] [%emt 00:06:07]} 17.Nd2 {[%clk 01:26:36] [%emt 00:01:22]} 17...Be7 
{[%clk 01:21:39] [%emt 00:00:32]} 18.Na4 {[%clk 01:19:31] [%emt 00:07:35]} 
18...Nxa4 {[%clk 01:20:00] [%emt 00:02:10]} 19.Qxa4 {[%clk 01:19:04] [%emt
00:00:57]} 19...a6 {[%clk 01:10:04] [%emt 00:10:25]} 20.Qc2 {[%clk 01:10:52]
[%emt 00:08:42]} 20...Bd6 {[%clk 01:08:16] [%emt 00:02:18]} 21.a3 {[%clk
01:04:30] [%emt 00:06:52]} 21...Qh4 {[%clk 00:52:22] [%emt 00:16:25]} 22.g3 
{[%clk 01:04:49] [%emt 00:00:11]} 22...Qf6 {[%clk 00:49:06] [%emt 00:03:46]} 
23.Rfe1 {[%clk 00:59:13] [%emt 00:06:05]} 23...Re7 {[%clk 00:45:10] [%emt
00:04:27]} 24.Be2 {[%clk 00:49:38] [%emt 00:10:05]} 24...Bf5 {[%clk 00:43:27]
[%emt 00:02:13]} 25.Bd3 {[%clk 00:50:04] [%emt 00:00:04]} 25...Bg4 {[%clk
00:39:28] [%emt 00:04:28]} 26.Be2 {[%clk 00:50:05] [%emt 00:00:29]} 26...Bd7 
{[%clk 00:36:46] [%emt 00:03:13]} 27.Nb3 {[%clk 00:46:36] [%emt 00:03:59]} 
27...Rae8 {[%clk 00:33:26] [%emt 00:03:49]} 28.Nc5 {[%clk 00:46:46] [%emt
00:00:20]} 28...Bf5 {[%clk 00:27:40] [%emt 00:06:16]} 29.Bd3 {[%clk 00:45:37]
[%emt 00:01:40]} 29...Bc8 {[%clk 00:25:13] [%emt 00:02:57]} 30.a4 {[%clk
00:41:38] [%emt 00:04:28]} 30...h5 {[%clk 00:21:30] [%emt 00:04:13]} 31.b5 
{[%clk 00:40:37] [%emt 00:01:31]} 31...axb5 {[%clk 00:19:27] [%emt 00:02:34]} 
32.axb5 {[%clk 00:41:05] [%emt 00:00:02]} 32...h4 {[%clk 00:19:45] [%emt
00:00:12]} 33.bxc6 {[%clk 00:39:02] [%emt 00:02:33]} 33...bxc6 {[%clk 00:19:42]
[%emt 00:00:33]} 34.Bf1 {[%clk 00:26:22] [%emt 00:13:09]} 34...Bf5 {[%clk
00:16:23] [%emt 00:03:50]} 35.Nd3 {[%clk 00:26:12] [%emt 00:00:39]} 35...Be4 
{[%clk 00:08:28] [%emt 00:08:26]} 36.Qe2 {[%clk 00:18:10] [%emt 00:08:31]} 
36...Qf5 {[%clk 00:07:13] [%emt 00:01:46]} 37.Rbc1 {[%clk 00:16:19] [%emt
00:02:21]} 37...hxg3 {[%clk 00:04:06] [%emt 00:03:37]} 38.fxg3 {[%clk 00:16:46]
[%emt 00:00:02]} 38...Bxd3 {[%clk 00:01:32] [%emt 00:03:04]} 39.Qxd3 {[%clk
00:17:14] [%emt 00:00:02]} 39...Qg5 {[%clk 00:01:25] [%emt 00:00:38]} 40.Qd2 
{[%clk 00:08:32] [%emt 00:09:11]} 40...Rxe3 {[%clk 00:01:29] [%emt 00:00:26]} 
41.Rxe3 {[%clk 00:05:48] [%emt 00:03:15]} 41...Rxe3 {[%clk 00:01:36] [%emt
00:00:22]} 42.Bg2 {[%clk 00:05:50] [%emt 00:00:28]} 42...Rxg3 {[%clk 00:41:04]
[%emt 00:11:03]} 43.Qxg5 {[%clk 00:56:11] [%emt 00:00:08]} 43...Rxg5 {[%clk
00:41:30] [%emt 00:00:05]} 44.Rxc6 {[%clk 00:56:32] [%emt 00:00:09]} 44...Bf4 
{[%clk 00:41:28] [%emt 00:00:31]} 45.Rc5 {[%clk 00:45:57] [%emt 00:11:05]} 
45...Be3+ {[%clk 00:41:06] [%emt 00:00:52]} 46.Kh1 {[%clk 00:45:57] [%emt
00:00:30]} 46...Bxd4 {[%clk 00:41:14] [%emt 00:00:22]} 47.Rxd5 {[%clk 00:46:24]
[%emt 00:00:03]} 47...Rg4 {[%clk 00:40:46] [%emt 00:00:58]} 48.Rf5 {[%clk
00:46:25] [%emt 00:00:29]} 48...f6 {[%clk 00:40:04] [%emt 00:01:13]} 49.Rf1 
{[%clk 00:43:58] [%emt 00:02:57]} 49...Be5 {[%clk 00:39:50] [%emt 00:00:44]} 
50.Re1 {[%clk 00:42:34] [%emt 00:01:54]} 50...Rd4 {[%clk 00:39:34] [%emt
00:00:46]} 51.h3 {[%clk 00:40:46] [%emt 00:02:17]} 51...Kh7 {[%clk 00:39:30]
[%emt 00:00:34]} 52.Bf3 {[%clk 00:40:56] [%emt 00:00:20]} 52...g6 {[%clk
00:39:32] [%emt 00:00:28]} 53.Kg2 {[%clk 00:41:17] [%emt 00:00:10]} 53...Kh6 
{[%clk 00:39:56] [%emt 00:00:06]} 54.Re4 {[%clk 00:41:15] [%emt 00:00:31]} 
54...Rd2+ {[%clk 00:40:19] [%emt 00:00:07]} 55.Re2 {[%clk 00:41:40] [%emt
00:00:06]} 55...Rd3 {[%clk 00:40:39] [%emt 00:00:10]} 56.Re4 {[%clk 00:37:05]
[%emt 00:05:04]} 56...Ra3 {[%clk 00:40:52] [%emt 00:00:18]} 57.Rh4+ {[%clk
00:37:21] [%emt 00:00:14]} 57...Kg7 {[%clk 00:41:17] [%emt 00:00:05]} 58.Re4 
{[%clk 00:37:43] [%emt 00:00:07]} 58...Ra5 {[%clk 00:41:40] [%emt 00:00:08]} 
59.Rc4 {[%clk 00:33:54] [%emt 00:04:19]} 59...Ra2+ {[%clk 00:41:43] [%emt
00:00:26]} 60.Kg1 {[%clk 00:33:52] [%emt 00:00:32]} 60...f5 {[%clk 00:41:51]
[%emt 00:00:22]} 61.Rc6 {[%clk 00:13:33] [%emt 00:20:50]} 61...Bh2+ {[%clk
00:41:05] [%emt 00:01:16]} 62.Kf1 {[%clk 00:13:25] [%emt 00:00:37]} 62...Bg3 
{[%clk 00:41:13] [%emt 00:00:22]} 63.Be2 {[%clk 00:13:17] [%emt 00:00:39]} 
63...Kh6 {[%clk 00:41:06] [%emt 00:00:36]} 64.Bc4 {[%clk 00:12:20] [%emt
00:01:27]} 64...Rf2+ {[%clk 00:41:08] [%emt 00:00:28]} 65.Kg1 {[%clk 00:11:52]
[%emt 00:00:59]} 65...Rd2 {[%clk 00:41:24] [%emt 00:00:13]} 66.Ra6 {[%clk
00:09:35] [%emt 00:02:48]} 66...Kg5 {[%clk 00:40:58] [%emt 00:00:55]} 67.h4+ 
{[%clk 00:02:26] [%emt 00:07:38]} 67...Kh5 {[%clk 00:34:23] [%emt 00:07:06]} 
68.Bf7 {[%clk 00:01:12] [%emt 00:01:45]} 68...Bd6 {[%clk 00:32:30] [%emt
00:02:23]} 69.Kf1 {[%clk 00:00:47] [%emt 00:00:54]} 69...f4 {[%clk 00:30:21]
[%emt 00:02:39]} 70.Ra2 {[%clk 00:08:19] [%emt 00:07:59]} 70...Rd4 {[%clk
00:41:10] [%emt 00:04:41]} 71.Rg2 {[%clk 00:06:16] [%emt 00:02:33]} 71...Kxh4 
{[%clk 00:41:18] [%emt 00:00:21]} 72.Rxg6 {[%clk 00:06:43] [%emt 00:00:03]} 
72...f3 {[%clk 00:40:59] [%emt 00:00:50]} 73.Kf2 {[%clk 00:05:28] [%emt
00:01:45]} 73...Rd3 {[%clk 00:40:25] [%emt 00:01:04]} 74.Rh6+ {[%clk 00:05:56]
[%emt 00:00:02]} 74...Kg4 {[%clk 00:40:01] [%emt 00:00:54]} 75.Rg6+ {[%clk
00:06:23] [%emt 00:00:03]} 75...Kf5 {[%clk 00:39:57] [%emt 00:00:33]} 76.Rxd6 
{[%clk 00:06:46] [%emt 00:00:07]} 76...Rxd6 {[%clk 00:40:17] [%emt 00:00:11]} 
77.Kxf3 {[%clk 00:07:14] [%emt 00:00:02]} 77...Rd3+ {[%clk 00:40:26] [%emt
00:00:21]} 78.Ke2 {[%clk 00:07:41] [%emt 00:00:02]} 78...Ra3 {[%clk 00:40:48]
[%emt 00:00:07]} 79.Kd2 {[%clk 00:08:06] [%emt 00:00:07]} 79...Ke4 {[%clk
00:41:15] [%emt 00:00:03]} 80.Kc2 {[%clk 00:08:27] [%emt 00:00:08]} 80...Kd4 
{[%clk 00:41:38] [%emt 00:00:07]} 81.Kb2 {[%clk 00:08:44] [%emt 00:00:13]} 
81...Ra7 {[%clk 00:42:01] [%emt 00:00:07]} 82.Ba2 {[%clk 00:09:08] [%emt
00:00:07]} 82...Kd3 {[%clk 00:42:25] [%emt 00:00:05]} 83.Bb1+ {[%clk 00:09:34]
[%emt 00:00:05]} 83...Kd2 {[%emt 00:00:08]} 84.Ba2 {[%clk 00:09:57]} 84...Rb7+ 
{[%clk 00:43:17] [%emt 00:00:05]} 85.Ka1 {[%clk 00:10:11] [%emt 00:00:16]} 
85...Kc2 {[%clk 00:43:42] [%emt 00:00:06]} 86.Be6 {[%clk 00:10:06] [%emt
00:00:34]} 86...Rb1+ {[%clk 00:43:45] [%emt 00:00:28]} 87.Ka2 {[%clk 00:10:34]
[%emt 00:00:02]} 87...Rb6 {[%clk 00:44:09] [%emt 00:00:05]} 88.Bf5+ {[%clk
00:10:57] [%emt 00:00:07]} 88...Kc3 {[%clk 00:44:37] [%emt 00:00:03]} 89.Bh7 
{[%clk 00:10:05] [%emt 00:01:22]} 89...Rb2+ {[%clk 00:44:26] [%emt 00:00:41]} 
90.Ka1 {[%clk 00:10:32] [%emt 00:00:02]} 90...Rb6 {[%clk 00:44:47] [%emt
00:00:09]} 1/2-1/2